bitfinex-derivatives/quotes_SOLF0:USTF0_20220102
["timestamp","ask_amount","ask_price","bid_price","bid_amount"]
[1641100482577,12.07236556,176.16,176.12,10.93307994]
[1641100484881,39.73715556,176.17,176.13,4.03107994]
[1641100486084,5.67665758,176.14,176.05,32.23450655]
[1641100486281,39.73715556,176.17,176.09,4.03126076]
[1641100486282,10.01408033,176.16,176.09,4.03126076]
[1641100486486,8.67762448,176.11,176.01,32.23450655]
[1641100486681,55.32958,176.02,176.01,32.23450655]
[1641100486884,59.52058,176.02,176.01,28.48205602]
[1641100487284,62.52058,176.02,176.01,24.44205602]
[1641100487483,62.52058,176.02,176.01,12.94205602]
[1641100487684,62.52058,176.02,176.0,4.03296244]
[1641100487884,3.0,176.01,176.0,4.03296244]
[1641100489192,13.01408033,176.01,175.93,4.03296244]
[1641100489390,10.01408033,176.01,175.93,4.03296244]
[1641100489590,3.0,175.97,175.93,4.03296244]
[1641100489792,4.836,175.97,175.93,4.03296244]
[1641100490493,16.94153358,175.97,175.93,4.03296244]
[1641100491993,4.836,175.97,175.94,4.03296244]
[1641100492198,3.0,175.95,175.94,4.03296244]
[1641100492795,27.66479,175.95,175.9,4.03296244]
[1641100493395,3.0,175.91,175.9,4.03296244]
[1641100493600,5.76,175.91,175.9,4.03296244]
[1641100494096,5.76,175.91,175.82,69.18609]
[1641100494897,33.42479,175.91,175.82,27.66479]
[1641100496100,3.0,175.9,175.82,27.66479]
[1641100496296,33.42479,175.91,175.82,27.66479]
[1641100496497,3.0,175.9,175.82,27.66479]
[1641100496695,33.42479,175.91,175.82,27.66479]
[1641100496896,36.42479,175.91,175.82,27.66479]
[1641100497099,33.42479,175.91,175.82,27.66479]
[1641100498299,3.0,175.9,175.82,27.66479]
[1641100498499,33.42479,175.91,175.82,27.66479]
[1641100499205,5.76,175.91,175.8,3.0]
[1641100499399,3.0,175.92,175.78,40.3904]
[1641100499600,3.0,175.91,175.78,40.3904]
[1641100499801,34.16179,175.91,175.82,27.66479]
[1641100500301,39.84570736,175.91,175.79,27.66479]
[1641100500500,42.84570736,175.91,175.77,41.4052]
[1641100500701,3.0,175.88,175.75,8.32]
[1641100501204,39.84570736,175.91,175.73,38.8851]
[1641100501404,3.0,175.86,175.73,47.2651]
[1641100501602,9.352,175.86,175.73,47.2651]
[1641100501800,34.01679,175.86,175.75,27.66479]
[1641100502001,34.01679,175.86,175.78,3.0]
[1641100502201,27.66479,175.86,175.75,33.20579]
[1641100502398,3.0,175.9,175.75,33.20579]
[1641100502599,3.0,175.89,175.75,33.20579]
[1641100503199,2.75705911,175.89,175.86,4.03296244]
[1641100503400,5.75705911,175.89,175.86,4.03296244]
[1641100503801,27.66479,175.88,175.86,4.03296244]
[1641100504403,42.27782538,175.88,175.84,4.03296244]
[1641100505605,2.75705911,175.87,175.84,4.03296244]
[1641100507506,2.75705911,175.87,175.83,4.03296244]
[1641100508305,11.85597627,175.86,175.82,4.03296244]
[1641100510007,12.80345504,175.87,175.79,1.27999557]
[1641100510909,12.11412365,175.85,175.81,4.03804122]
[1641100511410,2.75705911,175.86,175.77,15.09888731]
[1641100511614,2.75705911,175.86,175.77,12.09888731]
[1641100511811,2.75705911,175.86,175.78,27.66479]
[1641100512411,2.75705911,175.87,175.84,4.0374754]
[1641100513011,12.11242621,175.85,175.81,4.03811557]
[1641100514812,12.11242621,175.85,175.78,67.12999]
[1641100515012,14.8701902,175.87,175.83,4.03769548]
[1641100515515,27.66479,175.88,175.82,4.03777424]
[1641100515713,32.30281194,175.9,175.82,4.03777424]
[1641100516313,2.75716835,175.87,175.85,4.037154]
[1641100517113,12.11250775,175.88,175.84,4.03750258]
[1641100517515,12.11250775,175.88,175.84,8.68050258]
[1641100517917,2.7575518,175.89,175.84,4.643]
[1641100518217,14.86861705,175.9,175.86,4.03702175]
[1641100518616,12.11199876,175.89,175.85,4.03733292]
[1641100519617,12.11199876,175.89,175.81,12.09888731]
[1641100519819,4.797,175.9,175.82,27.66479]
[1641100520018,27.66479,175.91,175.82,27.66479]
[1641100520216,27.66479,175.91,175.83,5.29423561]
[1641100521017,27.66479,175.91,175.82,31.67907483]
[1641100521418,32.57079,175.91,175.82,31.67907483]
[1641100521820,32.57079,175.91,175.83,5.28704369]
[1641100522418,4.906,175.91,175.83,5.28704369]
[1641100522618,4.906,175.91,175.82,4.01428483]
[1641100523820,4.906,175.91,175.82,31.67907483]
[1641100524022,27.66479,175.92,175.82,31.67907483]
[1641100524424,14.86905397,175.9,175.86,4.01428483]
[1641100524625,21.17405397,175.9,175.86,4.01428483]
[1641100525023,2.75705521,175.89,175.83,1.27999593]
[1641100525726,2.75705521,175.89,175.82,39.76367731]
[1641100525925,18.60699876,175.9,175.86,4.03699725]
[1641100526424,2.75699437,175.89,175.83,1.28000146]
[1641100527127,12.11199876,175.9,175.86,4.03699517]
[1641100527726,12.11199876,175.9,175.82,12.09888731]
[1641100527925,12.11199876,175.9,175.83,27.66479]
[1641100528325,12.11199876,175.9,175.86,4.03700189]
[1641100529025,12.11199876,175.9,175.86,10.13100189]
[1641100529227,12.11199876,175.9,175.86,6.094]
[1641100529632,14.86701049,175.91,175.87,5.31670609]
[1641100531033,27.66479,175.94,175.86,6.094]
[1641100531233,12.10948982,175.92,175.88,4.03649661]
[1641100531633,2.75644523,175.93,175.86,6.094]
[1641100531835,14.86565014,175.93,175.89,4.03640164]
[1641100532433,14.86565014,175.93,175.85,18.2033554]
[1641100532635,20.26965014,175.93,175.85,18.2033554]
[1641100533034,20.26965014,175.93,175.88,4.03641413]
[1641100533236,2.75644523,175.92,175.88,4.03641413]
[1641100533836,12.10920491,175.93,175.89,4.03642378]
[1641100534837,12.10920491,175.93,175.86,3.0]
[1641100535037,14.8655196,175.93,175.86,3.0]
[1641100535938,14.8655196,175.93,175.87,3.0]
[1641100536141,14.8655196,175.93,175.89,7.03637808]
[1641100536437,14.8655196,175.93,175.89,4.03637808]
[1641100536837,12.10920491,175.95,175.91,4.03577115]
[1641100537636,12.79522138,175.97,175.89,5.644]
[1641100538037,12.79522138,175.97,175.92,30.66479]
[1641100538237,12.79522138,175.97,175.92,27.66479]
[1641100538639,12.10678315,175.96,175.92,31.70038438]
[1641100539436,45.09803332,176.0,175.92,27.66479]
[1641100539637,12.10624246,175.97,175.93,5.31557378]
[1641100540240,12.10624246,175.97,175.92,27.66479]
[1641100541239,12.10624246,175.97,175.93,5.31555121]
[1641100542041,12.10624246,175.97,175.92,27.66479]
[1641100542647,12.10624246,175.97,175.9,39.1659]
[1641100542846,12.79522138,176.0,175.93,5.31546068]
[1641100543848,12.10578973,175.97,175.91,1.28017472]
[1641100544747,32.30281194,176.01,175.9,42.1659]
[1641100544947,32.30281194,176.01,175.93,4.03525768]
[1641100545249,32.30281194,176.01,175.9,42.1659]
[1641100545448,12.10576654,175.97,175.91,1.28017549]
[1641100545953,32.30281194,176.01,175.93,4.03525429]
[1641100546749,32.30281194,176.01,175.93,31.70004429]
[1641100547051,12.10575956,175.97,175.93,27.66479]
[1641100547752,4.241,175.99,175.93,27.66479]
[1641100547956,4.241,175.99,175.93,21.20830516]
[1641100548651,27.66479,175.97,175.9,39.1659]
[1641100549355,12.00922065,175.95,175.91,5.28360318]
[1641100549957,17.58122065,175.95,175.91,5.28360318]
[1641100550455,17.58122065,175.95,175.91,4.00307355]
[1641100550655,14.76444039,175.94,175.9,43.16897355]
[1641100550855,14.76444039,175.94,175.9,4.00307355]
[1641100551855,14.76444039,175.94,175.91,4.00307355]
[1641100552055,2.75521974,175.94,175.91,4.00307355]
[1641100552257,2.75521974,175.94,175.91,7.00307355]
[1641100552756,12.00922065,175.95,175.93,27.66479]
[1641100553656,12.00922065,175.95,175.94,4.00307355]
[1641100553856,12.00922065,175.98,175.94,4.00307355]
[1641100554459,12.00922065,175.97,175.93,4.00307355]
[1641100555661,12.00922065,175.96,175.92,4.00307355]
[1641100558462,4.03558604,175.93,175.92,4.00307355]
[1641100558864,4.03558604,175.93,175.92,7.00307355]
[1641100559062,4.03558604,175.93,175.92,3.0]
[1641100560464,4.03558604,175.93,175.92,7.03543404]
[1641100560664,8.604e-05,175.93,175.92,7.03543404]
[1641100561068,12.00922065,175.96,175.92,3.0]
[1641100561268,5.453,175.98,175.89,27.66479]
[1641100561269,17.46222065,175.98,175.93,3.0]
[1641100561466,12.00922065,175.98,175.93,3.0]
[1641100561865,12.00922065,175.97,175.93,3.0]
[1641100563274,18.79822065,175.97,175.89,15.09888731]
[1641100563476,18.79822065,175.97,175.89,12.09888731]
[1641100563873,18.79822065,175.97,175.87,84.1569]
[1641100563874,12.00922065,175.96,175.88,18.20449875]
[1641100564473,12.00922065,175.96,175.88,21.20449875]
[1641100564874,12.00922065,175.96,175.89,3.0]
[1641100565074,12.00922065,175.94,175.87,44.0623]
[1641100565274,12.00922065,175.94,175.89,3.0]
[1641100565474,12.00922065,175.94,175.87,44.0623]
[1641100565676,18.42422065,175.94,175.87,44.0623]
[1641100565875,6.415,175.94,175.87,56.16118731]
[1641100566778,27.66479,175.89,175.87,44.0623]
[1641100566977,34.15879,175.89,175.83,12.09888731]
[1641100568879,34.15879,175.89,175.85,3.0]
[1641100569080,12.00922065,175.91,175.85,3.0]
[1641100569081,12.00922065,175.91,175.85,6.528]
[1641100569282,8.68101122,176.0,175.85,6.528]
[1641100569283,12.00922065,175.92,175.89,3.0]
[1641100569483,12.00922065,175.92,175.89,6.246]
[1641100570080,12.00922065,175.95,175.87,12.09888731]
[1641100570282,6.536,175.92,175.87,12.09888731]
[1641100570883,27.66479,175.9,175.83,12.09888731]
[1641100571882,27.66479,175.9,175.8,33.34580122]
[1641100572283,27.66479,175.9,175.82,3.0]
[1641100572485,27.66479,175.9,175.8,27.66479]
[1641100572683,27.66479,175.9,175.81,45.012]
[1641100573086,27.66479,175.9,175.82,3.0]
[1641100573283,27.66479,175.9,175.83,3.0]
[1641100573484,27.66479,175.9,175.81,45.012]
[1641100573684,32.09479,175.9,175.81,45.012]
[1641100575086,32.09479,175.9,175.81,48.012]
[1641100575585,32.09479,175.9,175.81,45.012]
[1641100576488,27.66479,175.93,175.81,48.012]
[1641100576989,27.66479,175.93,175.83,27.66479]
[1641100577186,27.66479,175.93,175.83,30.66479]
[1641100577387,27.66479,175.93,175.83,27.66479]
[1641100577887,12.00922065,175.91,175.83,39.76367731]
[1641100578087,16.28122065,175.91,175.83,39.76367731]
[1641100578687,19.28122065,175.91,175.83,12.09888731]
[1641100578890,27.66479,175.9,175.83,12.09888731]
[1641100579090,12.00922065,175.87,175.8,12.09888731]
[1641100579288,12.00922065,175.87,175.81,3.0]
[1641100579688,12.00922065,175.87,175.82,3.0]
[1641100579889,12.00922065,175.9,175.81,3.0]
[1641100580188,12.00922065,175.9,175.82,12.09888731]
[1641100580888,12.00922065,175.9,175.82,15.09888731]
[1641100581591,12.00922065,175.9,175.82,21.20576592]
[1641100581788,12.00922065,175.9,175.82,18.20576592]
[1641100582190,12.00922065,175.9,175.82,12.09888731]
[1641100582391,12.00922065,175.89,175.81,12.09888731]
[1641100583093,12.00922065,175.88,175.8,82.88247731]
[1641100584393,12.00922065,175.88,175.8,85.88247731]
[1641100584594,12.00922065,175.88,175.8,82.88247731]
[1641100585293,16.61122065,175.88,175.8,82.88247731]
[1641100585695,12.00922065,175.87,175.8,70.78359]
[1641100586295,12.00922065,175.86,175.8,70.78359]
[1641100587096,12.00922065,175.87,175.8,70.78359]
[1641100588694,12.00922065,175.87,175.8,73.78359]
[1641100588896,12.00922065,175.87,175.8,70.78359]
[1641100589096,12.00922065,175.87,175.8,73.78359]
[1641100589296,12.00922065,175.87,175.8,70.78359]
[1641100589695,12.00922065,175.88,175.8,82.88247731]
[1641100590195,12.00922065,175.88,175.8,85.88247731]
[1641100593105,14.76566008,175.88,175.81,1.28080459]
[1641100597811,2.75643943,175.88,175.81,22.48668513]
[1641100598108,2.75643943,175.88,175.81,19.48668513]
[1641100598509,2.75643943,175.88,175.81,1.28080459]
[1641100599112,8.95343943,175.88,175.81,1.28080459]
[1641100600414,2.75643943,175.87,175.83,3.0]
[1641100600618,2.75643943,175.87,175.81,4.28080459]
[1641100601014,2.75643943,175.87,175.82,3.0]
[1641100601213,2.75643943,175.87,175.81,4.28080459]
[1641100601414,2.75643943,175.87,175.83,30.66479]
[1641100601613,2.75643943,175.87,175.83,27.66479]
[1641100602017,2.75643943,175.88,175.83,27.66479]
[1641100602613,12.00922065,175.91,175.84,1.28080459]
[1641100604216,27.66479,175.93,175.84,1.28080459]
[1641100604217,12.00922065,175.9,175.84,1.28080459]
[1641100604417,16.55522065,175.9,175.84,1.28080459]
[1641100604916,12.00922065,175.89,175.84,1.28080459]
[1641100605416,14.76566008,175.89,175.84,1.28080459]
[1641100606922,2.75643943,175.89,175.84,1.28080459]
[1641100607522,14.76566008,175.89,175.84,1.28080459]
[1641100607919,3.0,175.88,175.84,1.28080459]
[1641100608120,17.76566008,175.89,175.84,1.28080459]
[1641100608320,14.76566008,175.89,175.84,1.28080459]
[1641100608521,12.00922065,175.88,175.84,1.28080459]
[1641100609323,12.00922065,175.86,175.79,28.94555462]
[1641100609522,17.60922065,175.86,175.79,28.94555462]
[1641100610222,2.75643943,175.85,175.8,1.28076462]
[1641100610724,17.71321896,175.86,175.8,1.28076462]
[1641100611623,2.75690525,175.85,175.79,27.66479]
[1641100612224,5.6,175.86,175.8,1.2807675]
[1641100613024,5.6,175.86,175.79,39.76367731]
[1641100613224,2.75682381,175.85,175.79,39.76367731]
[1641100613726,5.6,175.86,175.79,39.76367731]
[1641100613925,5.6,175.86,175.8,1.2807703]
[1641100614125,10.0396841,175.88,175.8,1.2807703]
[1641100614528,2.75659162,175.85,175.8,19.48668787]
[1641100615125,12.1126139,175.87,175.8,1.2807703]
[1641100615927,12.79982214,175.88,175.8,19.48674651]
[1641100616730,14.86878756,175.88,175.8,19.48674651]
[1641100617331,42.9427,175.89,175.8,19.48674651]
[1641100618431,14.86849277,175.88,175.8,19.48674651]
[1641100619232,42.9427,175.89,175.8,19.48674651]
[1641100619836,2.75639384,175.88,175.81,12.09888731]
[1641100620436,55.05430773,175.89,175.81,12.09888731]
[1641100620636,12.11160773,175.88,175.8,19.48674651]
[1641100621435,42.9427,175.89,175.8,19.48674651]
[1641100621636,4.03691476,175.85,175.84,4.03691476]
[1641100622135,12.11074427,175.88,175.8,19.48674651]
[1641100622545,42.3955,175.89,175.8,19.48674651]
[1641100622837,42.3955,175.89,175.84,4.03698455]
[1641100623035,30.42104055,175.9,175.84,4.03698455]
[1641100623936,12.11099329,175.88,175.8,19.48674651]
[1641100624337,12.79757504,175.89,175.84,4.03697856]
[1641100624940,2.75625055,175.89,175.8,19.48674651]
[1641100625138,14.86681195,175.89,175.85,4.0368538]
[1641100625639,12.1105614,175.88,175.84,4.03695189]
[1641100626639,12.79745746,175.91,175.83,1.2807703]
[1641100627241,12.1109097,175.88,175.82,45.4659]
[1641100627444,12.1109097,175.88,175.84,4.0369699]
[1641100628143,12.11092451,175.89,175.85,4.03697484]
[1641100628543,12.11092451,175.89,175.88,27.66479]
[1641100629247,2.75625055,175.91,175.88,31.70130586]
[1641100629743,32.30281194,175.96,175.88,27.66479]
[1641100629945,12.10890093,175.93,175.89,5.31717772]
[1641100630643,12.10890093,175.93,175.88,27.66479]
[1641100631242,14.86430228,175.93,175.89,4.03627212]
[1641100631445,14.86430228,175.93,175.89,5.3171739]
[1641100632046,14.86430228,175.93,175.88,27.66479]
[1641100632646,14.86430228,175.93,175.89,5.31719467]
[1641100633248,14.86430228,175.93,175.88,27.66479]
[1641100633451,12.10890093,175.93,175.88,27.66479]
[1641100633851,17.50090093,175.93,175.88,27.66479]
[1641100634250,5.392,175.93,175.89,4.03628582]
[1641100634451,5.392,175.93,175.89,5.31718623]
[1641100635252,5.392,175.93,175.88,27.66479]
[1641100635452,2.75540135,175.92,175.88,31.70117235]
[1641100635855,17.50114704,175.93,175.88,27.66479]
[1641100636053,12.10914704,175.92,175.88,27.66479]
[1641100636756,2.75546302,175.92,175.88,31.70114638]
[1641100637357,5.392,175.93,175.88,27.66479]
[1641100637565,12.10931071,175.92,175.88,27.66479]
[1641100638158,14.86485142,175.92,175.88,31.701217]
[1641100638660,14.86485142,175.92,175.88,27.66479]
[1641100639460,10.0386038,175.94,175.88,27.66479]
[1641100639660,12.10852395,175.93,175.89,5.31708618]
[1641100640162,12.79386692,175.94,175.88,27.66479]
[1641100641464,12.1086412,175.93,175.89,5.31712135]
[1641100642465,12.79386692,175.94,175.89,1.28090762]
[1641100642667,12.79386692,175.94,175.88,27.66479]
[1641100643164,2.75526312,175.94,175.88,27.66479]
[1641100643367,2.75526312,175.96,175.88,21.20694529]
[1641100643666,56.53002626,175.97,175.88,21.20694529]
[1641100644366,2.74051885,175.96,175.88,21.20694529]
[1641100644968,30.40530885,175.96,175.88,21.20694529]
[1641100645670,2.74051885,175.95,175.88,21.20694529]
[1641100649272,2.74051885,175.95,175.88,24.20694529]
[1641100649975,2.74051885,175.95,175.88,3.0]
[1641100650773,2.74051885,175.96,175.87,8.36]
[1641100650972,2.74051885,175.96,175.88,27.66479]
[1641100651376,12.04552626,175.93,175.89,5.29649004]
[1641100654574,12.04552626,175.94,175.9,4.01517542]
[1641100662382,12.04552626,175.94,175.9,8.27517542]
[1641100662783,12.04552626,175.95,175.91,4.01517542]
[1641100663284,12.04552626,175.95,175.91,5.29649004]
[1641100664685,12.04552626,175.95,175.91,4.01517542]
[1641100665586,14.78604511,175.96,175.9,4.01517542]
[1641100667587,14.78604511,175.96,175.9,5.29649004]
[1641100667988,14.78604511,175.96,175.9,8.29649004]
[1641100668187,14.78604511,175.96,175.9,12.49449004]
[1641100668388,14.78604511,175.96,175.9,11.21317542]
[1641100668790,14.78604511,175.96,175.9,8.21317542]
[1641100669189,12.04552626,175.97,175.91,5.29649004]
[1641100669388,12.04552626,175.97,175.91,32.96128004]
[1641100670089,12.04552626,175.97,175.92,5.29649004]
[1641100672790,12.04552626,175.96,175.92,5.29649004]
[1641100676393,14.78604511,175.96,175.92,5.29649004]
[1641100676997,2.74051885,175.96,175.93,4.01517542]
[1641100678096,2.74051885,175.96,175.92,4.01517542]
[1641100679095,2.74051885,175.96,175.93,4.01517542]
[1641100680799,2.74051885,175.96,175.94,4.01517542]
[1641100683205,12.04552626,175.97,175.93,4.01517542]
[1641100684805,12.04552626,175.94,175.89,34.90822413]
[1641100685405,12.04552626,175.94,175.9,5.29649675]
[1641100686604,12.04552626,175.94,175.89,31.67996542]
[1641100687510,12.04552626,175.93,175.89,31.67996542]
[1641100689110,12.04552626,175.94,175.89,27.66479]
[1641100694323,4.03071123,175.9,175.89,27.66479]
[1641100694823,12.04552626,175.94,175.89,27.66479]
[1641100695025,12.04552626,175.93,175.89,32.96128787]
[1641100696427,12.04552626,175.94,175.9,5.29649787]
[1641100697832,12.04552626,175.94,175.93,3.0]
[1641100698028,12.77504288,175.97,175.93,4.746]
[1641100698230,12.77504288,175.97,175.93,7.746]
[1641100698528,9.79504288,175.97,175.93,7.746]
[1641100698929,32.30281194,175.98,175.93,7.746]
[1641100699129,32.30281194,176.03,175.95,31.67996542]
[1641100700029,32.30281194,176.04,175.96,4.01517542]
[1641100700229,32.30281194,176.04,175.96,34.07357542]
[1641100700432,32.30281194,176.05,175.97,4.01517542]
[1641100702531,30.66479,176.06,175.96,30.0584]
[1641100704031,3.0,176.06,175.96,23.60324023]
[1641100705132,27.66479,176.05,175.96,51.26803023]
[1641100707035,3.0,176.06,175.96,23.60324023]
[1641100707635,27.66479,176.05,175.96,51.26803023]
[1641100708137,3.0,176.06,175.96,23.60324023]
[1641100709638,27.66479,176.05,175.96,51.26803023]
[1641100710538,3.0,176.06,175.96,23.60324023]
[1641100711740,4.00465526,176.01,175.96,23.60324023]
[1641100712238,4.00465526,176.01,175.96,51.26803023]
[1641100713340,4.00465526,176.02,175.96,51.26803023]
[1641100714744,4.00465526,176.02,175.96,54.26803023]
[1641100716049,4.00465526,176.04,175.96,54.26803023]
[1641100716350,4.00465526,176.04,175.99,27.66479]
[1641100717347,4.00465526,176.03,175.99,27.66479]
[1641100718547,4.00465526,176.03,175.96,26.60324023]
[1641100718947,10.02632599,176.05,175.98,4.01517542]
[1641100719147,10.02632599,176.05,175.99,27.66479]
[1641100719350,10.02632599,176.05,175.99,30.66479]
[1641100719548,10.02632599,176.05,176.03,3.0]
[1641100719746,10.02632599,176.05,176.03,9.29]
[1641100720248,32.30281194,176.06,176.04,3.0]
[1641100720448,32.30281194,176.06,176.03,9.29]
[1641100720747,32.30281194,176.06,176.04,3.0]
[1641100720947,32.30281194,176.11,176.04,3.0]
[1641100721149,32.30281194,176.11,176.07,27.66479]
[1641100721347,32.30281194,176.11,176.07,33.40179]
[1641100721951,32.30281194,176.12,176.07,33.40179]
[1641100723054,32.30281194,176.13,176.07,33.40179]
[1641100723354,32.30281194,176.13,176.08,3.0]
[1641100723554,32.30281194,176.13,176.07,33.40179]
[1641100725056,32.30281194,176.13,176.07,5.737]
[1641100725255,32.30281194,176.13,176.05,31.67996542]
[1641100726458,38.11381194,176.13,176.05,31.67996542]
[1641100728457,12.09716734,176.1,176.05,31.67996542]
[1641100729560,12.09716734,176.1,176.06,4.01517542]
[1641100730358,5.811,176.13,176.05,27.66479]
[1641100730557,31.7733,176.15,176.05,27.66479]
[1641100732062,31.7733,176.15,176.06,29.2279]
[1641100733161,31.7733,176.15,176.07,4.01517542]
[1641100733363,12.09716734,176.11,176.07,4.01517542]
[1641100733960,12.09716734,176.11,176.07,31.67996542]
[1641100735163,12.09716734,176.1,176.07,27.66479]
[1641100735666,12.09716734,176.11,176.07,31.67996542]
[1641100737366,12.09716734,176.11,176.07,34.67996542]
[1641100737767,12.09716734,176.11,176.07,31.67996542]
[1641100737968,12.09716734,176.12,176.08,4.01517542]
[1641100738567,12.09716734,176.11,176.07,31.67996542]
[1641100739871,12.09716734,176.11,176.1,27.66479]
[1641100740075,12.09716734,176.12,176.1,27.66479]
[1641100740771,2.74830666,176.14,176.1,27.66479]
[1641100740972,12.09496481,176.13,176.1,27.66479]
[1641100741976,12.09496481,176.13,176.11,27.66479]
[1641100742175,28.9876,176.17,176.11,27.66479]
[1641100742375,32.30281194,176.18,176.11,27.66479]
[1641100744077,32.30281194,176.18,176.14,27.66479]
[1641100744477,32.30281194,176.18,176.1,33.69997542]
[1641100744778,32.30281194,176.18,176.1,4.01517542]
[1641100744977,3.0,176.15,176.1,4.01517542]
[1641100745178,3.0,176.16,176.1,4.01517542]
[1641100745877,2.74830666,176.14,176.08,4.01517542]
[1641100746878,12.76385965,176.14,176.08,4.01517542]
[1641100747680,45.06667159,176.19,176.11,4.01517542]
[1641100748377,45.06667159,176.19,176.11,33.64647542]
[1641100748781,48.06667159,176.19,176.11,33.64647542]
[1641100748980,3.0,176.17,176.11,4.01517542]
[1641100749179,3.0,176.18,176.11,4.01517542]
[1641100749382,45.06667159,176.19,176.11,4.01517542]
[1641100749982,2.74830666,176.16,176.09,31.67996542]
[1641100750681,45.06667159,176.19,176.11,4.01517542]
[1641100751582,32.30281194,176.18,176.1,5.29971452]
[1641100752185,32.30281194,176.18,176.11,4.01517542]
[1641100752383,45.06667159,176.19,176.11,4.01517542]
[1641100755893,32.30281194,176.18,176.1,5.29971452]
[1641100756490,32.30281194,176.18,176.1,4.01517542]
[1641100756691,4.01287331,176.13,176.09,27.66479]
[1641100757292,4.01287331,176.14,176.09,27.66479]
[1641100760398,45.06667159,176.19,176.11,4.01517542]
[1641100760596,45.06667159,176.19,176.11,10.51617542]
[1641100762397,32.30281194,176.18,176.11,6.501]
[1641100762697,32.30281194,176.18,176.11,37.4323]
[1641100763200,45.06667159,176.19,176.11,41.44747542]
[1641100764499,45.06667159,176.19,176.11,37.4323]
[1641100765201,45.06667159,176.19,176.12,5.31560065]
[1641100765802,45.06667159,176.19,176.11,37.4323]
[1641100766003,12.76385965,176.19,176.11,37.4323]
[1641100766404,12.76385965,176.19,176.12,5.31550347]
[1641100767003,12.76385965,176.19,176.11,37.4323]
[1641100767301,3.0,176.18,176.11,37.4323]
[1641100767704,12.76385965,176.19,176.13,4.0307818]
[1641100768404,12.76385965,176.19,176.11,35.2853]
[1641100768603,12.76385965,176.19,176.12,4.03093087]
[1641100769205,45.06667159,176.19,176.11,39.31642795]
[1641100769808,45.06667159,176.19,176.11,35.2853]
[1641100770007,12.76385965,176.19,176.12,5.31550625]
[1641100770207,12.76385965,176.19,176.12,32.98029625]
[1641100770608,12.76385965,176.19,176.12,27.66479]
[1641100770809,12.76385965,176.19,176.13,3.0]
[1641100771008,12.76385965,176.19,176.12,27.66479]
[1641100771210,12.09185472,176.17,176.13,4.03061824]
[1641100772411,12.76385965,176.19,176.13,1.2846058]
[1641100773211,12.76385965,176.19,176.12,27.66479]
[1641100773412,12.09165216,176.17,176.13,4.03055072]
[1641100774216,12.09111187,176.18,176.14,4.03037062]
[1641100775114,12.09206967,176.17,176.13,4.03068989]
[1641100776014,12.09206967,176.17,176.12,31.69558667]
[1641100776213,12.09206967,176.16,176.12,31.69558667]
[1641100776714,12.76385965,176.19,176.12,27.66479]
[1641100777716,12.76385965,176.19,176.13,4.03068829]
[1641100777916,12.09206488,176.17,176.13,5.31527733]
[1641100778618,12.09206488,176.16,176.12,36.87456332]
[1641100779316,12.76385965,176.19,176.12,32.84379]
[1641100779517,12.06381212,176.18,176.12,32.84379]
[1641100780119,12.06381212,176.19,176.12,36.86487734]
[1641100780921,12.06381212,176.19,176.12,32.84379]
[1641100781319,12.06381212,176.19,176.12,27.66479]
[1641100781520,14.81211878,176.2,176.12,31.68585293]
[1641100782119,14.81211878,176.2,176.12,27.66479]
[1641100782720,12.06381212,176.19,176.12,4.02113214]
[1641100782920,18.41781212,176.19,176.12,4.02113214]
[1641100783121,18.41781212,176.19,176.11,30.9313]
[1641100783323,14.81211878,176.18,176.11,30.9313]
[1641100783923,12.06381212,176.17,176.11,30.9313]
[1641100784123,12.06381212,176.17,176.11,24.48181893]
[1641100786527,12.06381212,176.17,176.13,4.02156024]
[1641100787225,12.06381212,176.17,176.13,5.30655357]
[1641100787827,12.06381212,176.17,176.13,10.93955357]
[1641100788929,12.06381212,176.17,176.13,9.65456024]
[1641100789129,12.06381212,176.17,176.13,4.02156024]
[1641100789929,12.06381212,176.17,176.13,8.67156024]
[1641100790130,12.06381212,176.17,176.13,9.95656076]
[1641100791031,12.06381212,176.18,176.14,5.30656076]
[1641100791530,12.06381212,176.17,176.13,4.02156024]
[1641100792231,12.06381212,176.18,176.14,4.02156024]
[1641100795936,12.06381212,176.18,176.14,9.33756024]
[1641100799038,2.74830666,176.19,176.16,4.02156024]
[1641100800236,14.81211878,176.19,176.15,4.02156024]
[1641100800937,2.74830666,176.19,176.13,4.02156024]
[1641100802338,14.81211878,176.2,176.13,4.02156024]
[1641100802736,14.81211878,176.2,176.16,27.66479]
[1641100803741,12.06381212,176.2,176.16,27.66479]
[1641100804442,12.06381212,176.22,176.16,27.66479]
[1641100806042,12.06381212,176.21,176.16,27.66479]